[Event "Israeli Team-ch 2023"]
[Site "Petah Tikva"]
[Date "2023.05.05"]
[Round "9.7"]
[White "Gorodetzky, David"]
[Black "Navarro Guerrero, Pavel. E."]
[Result "0-1"]
[ECO "A01"]
[WhiteElo "2492"]
[BlackElo "2152"]
[Annotator "TA"]
[PlyCount "30"]
[EventDate "2023.01.13"]
[EventCountry "ISR"]
[SourceTitle "playchess.com"]
[Source "ChessBase"]
[SourceQuality "1"]
[TimeControl "40/5400+30:1800+30"]

{[%evp 9,30,-109,-112,-99,-59,-86,-56,-135,-136,-468,-185,-170,-154,-158,-104,-477,-227,-699,-200,-479,-462,-549,-538]} 1. b3 g6 2. h3 Bg7 3. c3 {[#]} b5 $146 ({Predecessor:} 3... c5 4. a3 Nc6 5. d3 d5 6. Bb2 e5 7. Nd2 f5 8. b4 e4 9. bxc5 e3 {0-1 Harrison,H (1798)-Ly,M (2479) Begonia op 54th 2020 (2)}) 4. g3 Bb7 5. f3 b4 6. Bg2 {A01: Nimzowitsch-Larsen Opening.} bxc3 7. dxc3 e6 8. Kf1 (8. e4 $15) 8... Ne7 9. Ba3 $2 {[%mdl 8192] [#]} (9. h4 $17 {is a better chance.}) 9... O-O $2 (9... Nf5 10. Bc5 Nxg3+ 11. Ke1 Nxh1 12. Bxh1 d5) 10. Qe1 d6 11. h4 c5 (11... Nd7 $142 12. h5 gxh5 13. Rxh5 f5) 12. b4 $2 {[%mdl 8192]} (12. h5 $17) 12... Nbc6 (12... cxb4 $142 13. Bc1 Qb6) 13. Nd2 $2 {[#]} (13. bxc5 dxc5 14. f4) 13... a6 $2 (13... cxb4 14. Rb1 Nd5) 14. Bc1 $2 (14. bxc5 Bxc3 15. Rc1) 14... cxb4 $19 (14... Bxc3 $2 {loses.} 15. Rb1 $19) 15. f4 bxc3 {Weighted Error Value: White=1.76/Black=1.24} 0-1

[Event "Israeli Team-ch 2023"]
[Site "Petah Tikva"]
[Date "2023.05.05"]
[Round "9.8"]
[White "Sutovsky, Emil"]
[Black "Globus, Or"]
[Result "0-1"]
[ECO "C78"]
[WhiteElo "2615"]
[BlackElo "2411"]
[Annotator "TA"]
[PlyCount "74"]
[EventDate "2023.01.13"]
[EventCountry "ISR"]
[SourceTitle "playchess.com"]
[Source "ChessBase"]
[SourceQuality "1"]
[TimeControl "40/5400+30:1800+30"]

{[%evp 12,74,45,37,33,36,25,18,22,33,30,10,0,0,12,0,0,0,6,6,0,1,18,16,18,27,17,13,10,5,20,20,110,110,103,0,0,0,94,91,102,75,75,0,107,108,211,82,74,81,93,74,104,65,96,54,116,169,125,0,3,0,0,-29997,-29998]} 1. e4 {[%emt 0:00:03]} e5 {[%emt 0:00:01]} 2. Nf3 {[%emt 0:00:07]} Nc6 {[%emt 0:00:03]} 3. Bb5 {[%emt 0:00:07][%cal Bf1b5,Bb5a4,Ba4b3][%mdl 32]} a6 {[%emt 0:00:03]} 4. Ba4 {[%emt 0:00:04]} Nf6 {[%emt 0:00:03]} 5. O-O {[%emt 0:00:06]} b5 {[%emt 0:00:38]} 6. Bb3 {[%emt 0:00:05]} Bc5 7. a4 {[%emt 0:00:15] axb5 is the strong threat. Nowadays more popular than 7.c3.} Rb8 {[%emt 0:01:01] [#] C78: Ruy Lopez: Archangelsk and Möller Defences.} (7... Nxe4 $2 8. axb5 Nxf2 9. Qe2 $18 (9. Rxf2 Bxf2+ 10. Kxf2 Nd4 $16)) 8. Nxe5 $1 {[%emt 0:00:17][%mdl 64] Deflection} Nxe5 {[%emt 0:00:04]} 9. d4 {[%emt 0:00:05]} Bxd4 {[%emt 0:00:04] The position is equal.} 10. Qxd4 {[%emt 0:00:04]} d6 {[%emt 0:00:03]} 11. f4 {[%emt 0:00:06]} Nc6 {[%emt 0:00:05]} 12. Qc3 {[%emt 0:00:04] Hoping for e5.} Ne7 {[%emt 0:00:02]} 13. Qe1 {[%emt 0:00:14]} O-O {[%emt 0:03:35]} 14. f5 {[%emt 0:00:33] [#]} c5 $146 {[%emt 0:04:48][%cal Bc7c5,Bc5c4][%mdl 32]} ({Predecessor:} 14... d5 15. e5 Ne4 16. f6 Ng6 17. fxg7 Re8 18. Nc3 Rxe5 19. Nxe4 Rxe4 20. Qf2 Be6 21. axb5 axb5 {½-½ Ivic,V (2581)-Grigoriants,S (2546) Titled Tuesday intern op 26th Jan blitz 2021 (8)}) 15. Bg5 {[%emt 0:12:35]} c4 {[%emt 0:04:16]} 16. Bxf6 {[%emt 0:04:47]} gxf6 {[%emt 0:00:03]} 17. Ba2 {[%emt 0:00:04]} Qb6+ {[%emt 0:09:51]} 18. Kh1 {[%emt 0:01:13]} d5 {[%emt 0:01:16]} 19. Qg3+ {[%emt 0:02:02]} Kh8 {[%emt 0:00:47] [#] Strongly threatening ...Bb7.} 20. a5 $1 $36 {[%emt 0:00:02][%mdl 2048] White has some pressure.} Qb7 {[%emt 0:30:29]} 21. Qd6 {[%emt 0:00:32]} dxe4 {[%emt 0:10:26] Black is weak on the dark squares} (21... Rg8 $1 $11) 22. Qxf6+ $16 {[%emt 0:06:39]} Kg8 {[%emt 0:00:26]} 23. Qg5+ {[%emt 0:00:16]} (23. Nc3 {seems wilder.} Re8 24. Rae1 Nxf5 25. Rf4) 23... Kh8 {[%emt 0:01:00]} 24. Qf6+ {[%emt 0:00:02]} Kg8 {[%emt 0:00:07]} 25. Nc3 {[%emt 1:12:38]} Re8 {[%emt 0:09:36]} 26. Qg5+ {[%emt 0:00:00]} Kh8 {[%emt 0:02:05]} 27. Qf6+ {[%emt 0:00:00]} Kg8 {[%emt 0:01:00]} 28. Rae1 $1 {[%emt 0:00:00][%cal Ba1e1,Be1e3,Be3g3][%mdl 32]} Bxf5 {[%emt 0:04:18] [#]} (28... Nxf5 $16 29. Rxf5 Bxf5 30. Qxf5 Rbd8) 29. Rxf5 {[%emt 0:00:00]} (29. b3 $1 $18 {[%cal Rb3c4] and the rest is easy.} Bg6 30. bxc4 bxc4 31. Bxc4) 29... Nxf5 {[%emt 0:00:22]} 30. Qxf5 {[%emt 0:00:00][%cal Oc3d5]} Rbd8 {[%emt 0:04:31] Inhibits Nd5.} 31. Qg5+ {[%emt 0:00:00]} (31. Rxe4 $2 Qxe4 32. Qg5+ Qg6 33. Qxg6+ hxg6 $19) 31... Kh8 {[%emt 0:00:52]} 32. Qf6+ {[%emt 0:00:00]} Kg8 {[%emt 0:00:01][%cal Bh8g8,Bg8f8,Bf8e7][%mdl 32]} 33. Re3 {[%emt 0:00:00] Black must now prevent Qh6.} (33. Rxe4 $2 Qxe4 34. h4 Qe3 $19) 33... Qc7 {[%emt 0:01:52]} (33... Qd7 $1 $14 34. Rg3+ (34. Rxe4 Qd1+ {[%mdl 64] Back Rank} 35. Nxd1 Rxd1+) 34... Kf8 35. Qh6+ (35. Qxa6 $2 Qd1+ {[%mdl 64] Back Rank} 36. Nxd1 Rxd1#) 35... Ke7 36. Qg5+ (36. Qxa6 $2 Qd1+ {[%mdl 64] Back Rank} 37. Nxd1 Rxd1#) (36. Qh4+ Kd6 $14) 36... f6) 34. Rg3+ {[%emt 0:00:00]} (34. Nxe4 $2 Rd1+) (34. Qxa6 $6 Qf4 35. Re1 Re6 36. Qxb5 Rh6 $11) 34... Kf8 {[%emt 0:00:27] [#]} 35. Qh6+ {[%emt 0:00:00]} (35. Qxa6 $2 {is the wrong capture.} Qf4 36. Qa7 (36. Qxb5 $2 Qf1#) 36... Qf1+ 37. Qg1 Qxg1+ 38. Kxg1 e3 39. Bxc4 (39. Nxb5 $2 Rd1#) (39. Kf1 $2 b4 $19) 39... bxc4 $19) (35. Rg5 $1 $16 Re6 36. Qg7+ Ke8 37. Rf5 (37. Qxh7 Qf4 $11)) 35... Ke7 $11 {[%emt 0:00:04]} 36. Re3 {[%emt 0:00:00]} (36. Qxh7 $2 Qf4 37. Kg1 Qc1+ 38. Kf2 Rd2+ 39. Ne2 Rxe2+ 40. Kxe2 Qxc2+ 41. Ke3 Qc1+ 42. Ke2 Qxb2+ 43. Ke3 Qc1+ 44. Ke2 Qc2+ 45. Ke3 Qc1+ 46. Ke2 Qb2+ 47. Ke3 Qc1+ $19) 36... Qd6 {[%emt 0:04:08] ( -> ...Qd1+). The board is on fire.} 37. Qxh7 $2 {[%emt 0:00:00][%mdl 8192] [#]} (37. Qh4+ $11 Kf8 38. h3 (38. Nxe4 $2 {loses.} Qf4 $19 {[%mdl 64] Double Attack})) 37... Qd1+ $3 {[%emt 0:00:18][%mdl 576] Back Rank. A superb game by Globus.   Weighted Error Value: White=0.38/Black=0.12 (very precise)} 0-1

[Event "Israeli Team-ch 2023"]
[Site "Petah Tikva"]
[Date "2023.05.05"]
[Round "9.9"]
[White "Smirin, Ilia"]
[Black "Kochavi, Ori"]
[Result "1-0"]
[ECO "B12"]
[WhiteElo "2596"]
[BlackElo "2396"]
[Annotator "TA"]
[PlyCount "69"]
[EventDate "2023.01.13"]
[EventCountry "ISR"]
[SourceTitle "playchess.com"]
[Source "ChessBase"]
[SourceQuality "1"]
[TimeControl "40/5400+30:1800+30"]

{[%evp 9,69,20,25,23,41,22,60,9,31,-24,-24,-99,0,18,12,-197,-191,-229,-223,-204,-116,-158,-177,-189,-171,-158,-169,-158,-150,-163,-3,-377,-157,-239,-243,-227,-231,-222,0,0,97,0,0,0,464,560,557,556,553,560,560,560,560,560,560,560,560,559,541,533,29990,29991]} 1. e4 {[%emt 0:05:30]} c6 {[%emt 0:02:06]} 2. d4 {[%emt 0:00:15]} d5 {[%emt 0:00:03]} 3. e5 {[%emt 0:00:03]} Bf5 {[%emt 0:00:02]} 4. Nf3 {[%emt 0:00:06]} e6 {[%emt 0:00:06]} 5. Be2 {[%emt 0:00:27]} Ne7 {[%emt 0:00:39][%cal Oc6c5]} 6. c3 {[%emt 1:27:09] B12: Caro-Kann: Advance Variation.} Ng6 {[%emt 0:04:41]} 7. h4 {[%emt 0:00:30] [#]} Be7 $146 {[%emt 0:20:03]} ({Predecessor:} 7... h6 8. a4 Nd7 9. Na3 f6 10. h5 Ne7 11. exf6 gxf6 12. Nc2 Bg7 13. Ne3 Bh7 {0-1 Xiong,J (2686)-Tari,A (2653) Titled Tuesday intern op 08th Mar Late blitz 2022 (8)}) 8. g3 {[%emt 0:00:00]} (8. Qb3 $14) 8... h5 {[%emt 0:14:23]} 9. Ng5 {[%emt 0:00:00]} (9. Nbd2 $14) 9... c5 $11 {[%emt 0:12:32]} 10. Bxh5 {[%emt 0:00:00]} (10. a3 $1 $11) 10... cxd4 {[%emt 0:02:50]} (10... Nc6 $17) 11. cxd4 {[%emt 0:00:00]} Nc6 {[%emt 0:02:58]} 12. g4 $2 {[%emt 0:00:00] [#]} (12. Nc3 $11) 12... Rxh5 $1 $19 {[%mdl 512]} 13. gxh5 {[%emt 0:00:00] [#]} (13. gxf5 Bxg5) 13... Nxh4 {[%emt 0:03:07][%mdl 576] Remove Defender} 14. f4 {[%emt 0:00:00]} Ng2+ {[%emt 0:00:30]} (14... Qb6 $1 $19 {[%cal Oc6d4] Hoping for ...Nxd4!} 15. Rxh4 Nxd4) 15. Kf1 {[%emt 0:00:00] [#]} Nxf4 {[%emt 0:00:06][%mdl 576] Remove Defender} 16. Nxf7 {[%emt 0:00:00]} (16. Bxf4 Bxg5) 16... Kxf7 {[%emt 0:04:16]} 17. Bxf4 {[%emt 0:00:00]} Qb6 {[%emt 0:00:03][%csl LRb2,LRd4]} 18. Nc3 {[%emt 0:00:00]} Nxd4 {[%emt 0:05:12]} (18... Qxd4 19. Qxd4 Nxd4 20. Rd1 $15) 19. Rh2 {[%emt 0:00:00] Dodges Nc2} Rf8 $2 {[%emt 0:03:17]} ({Black should play} 19... Nc6 $19 {Threatens to win with ...Kg8.} 20. Qb3 Bd3+ 21. Kg2 Qd4) 20. h6 $2 {[%emt 0:00:00][%mdl 8192]} (20. Be3 $1 $11 {and White is okay.} Qa6+ 21. Kg1) 20... gxh6 {[%emt 0:04:17]} (20... Kg8 $1 $19 21. Rc1 (21. hxg7 $2 Bd3+ {[%mdl 64] Discovered Attack} 22. Qxd3 Rxf4+ 23. Kg2 Qxb2+ $19) 21... Bd3+ {[%mdl 64] Discovered Attack} 22. Qxd3 Rxf4+ 23. Rf2 Rxf2+ 24. Kxf2 Nf5+ 25. Kf1 Qxb2) 21. Be3 {[%emt 0:00:00]} (21. Bxh6 $17 Rh8 22. Rc1 (22. Qh5+ $2 Bg6 $19)) 21... Bc5 $1 {[%emt 0:01:58] This pair of bishops is nice.} 22. Rf2 {[%emt 0:00:00]} (22. Qh5+ $2 Ke7 23. Rf2 (23. Bxh6 Bh3+ {[%mdl 64] Discovered Attack (Double check)} 24. Ke1 Rf1+ {[%mdl 64] Skewer} 25. Kd2 Qxb2+ 26. Kd3 Qxh2 27. Nxd5+ Kd7 28. Ne3 Rxa1 29. Qf7+ Kc6 30. Qe8+ Kc7 31. Qf7+ Kb6 32. Qh5 Bf1+ {[%mdl 64] Discovered Attack} 33. Ke4 Qxh5 34. Kf4 Rxa2) (23. Qxh6 $2 Bd3+ {[%mdl 64] Discovered Attack (Double check)} 24. Kg1 Nf3+ {[%mdl 64] Discovered Attack, Double Attack} 25. Kg2 Bxe3 $19) 23... Bd3+ 24. Kg2 Rxf2+ 25. Bxf2 Qxb2 $19) 22... Rg8 $1 {[%emt 0:03:37]} 23. Qh5+ {[%emt 0:00:00]} (23. Bxh6 Qa6+) 23... Ke7 $2 {[%emt 0:00:03]} (23... Rg6 $1 $19 24. Bxd4 (24. Bxh6 $2 Qa6+ 25. Ke1 Kg8 $19) 24... Bxd4 25. Rxf5+ Kg7) 24. Rd1 $11 {[%emt 0:00:00] Strongly threatening Bxd4. Some like it hot} (24. Bxh6 $2 Bd3+ 25. Ne2 Bxe2+ 26. Rxe2 Nf3 $19) (24. Qxh6 Bd3+ 25. Ne2 (25. Ke1 $2 Nc2+ {[%mdl 64] Discovered Attack} 26. Rxc2 Bxe3 $19) 25... Qxb2 26. Qf6+ Kd7 27. Qf7+ Kc6 28. Qxg8 Qxa1+ 29. Kg2 Be4+ 30. Kg3 Nxe2+ 31. Rxe2 Bxe3 32. Qxe6+ Kb5 33. Qd7+ (33. Rxe3 $2 Qg1+ 34. Kh4 Qxe3 $19) 33... Ka5 34. Rxe3 Qg1+ 35. Kf4 Qf2+ {[%mdl 64] Deflection, Double Attack} 36. Kg4 Qxe3 $19) 24... Rg4 {[%emt 0:06:29]} (24... Qa6+ 25. Ne2 Nxe2 26. Bxc5+ Kd8 27. Qh4+ (27. Qxe2 Bh3+ 28. Ke1 Rg1+ 29. Kd2 Qa5+ 30. b4 Qxa2+ 31. Kc1 Qa1+ 32. Kc2 Bf5+ 33. Rxf5 Qa2+ 34. Kc1 Qxe2 $11) (27. Rxe2 Bg4 $11 {[%mdl 64] Pin}) 27... Kc8 28. Rxe2 $16) (24... Nc2 $1 $11 25. Qh4+ Kd7 26. Qa4+ Kd8 27. Nxd5 Bh3+ 28. Ke2 Bg4+ {[%mdl 64] Deflection} 29. Qxg4 Qb5+ 30. Kf3 Ne1+ 31. Rxe1 Rxg4) 25. Qxh6 {[%emt 0:00:00] White is more active.} (25. Bxh6 $2 Qa6+ 26. Ke1 Nc2+ 27. Kd2 Bxf2 $19) (25. Rxd4 $1 $16 Qa6+ 26. Ke1 Bxd4 27. Nxd5+ Kd8 28. Rxf5 Qa5+ 29. b4 Qxd5 30. Rf8+ Kc7 31. Rf7+ Kc6 32. Qxg4 Bxe3 33. Qd1) 25... Kd7 {[%emt 0:02:35]} 26. Rfd2 {[%emt 0:01:24]} (26. Qf6 $2 Be7 27. Qf7 Bg6 28. Rxd4 Bxf7 $19) 26... Nf3 $2 {[%emt 0:06:43][%mdl 8192] [#]} (26... Qb4 $11 {and Black stays safe.} 27. Qh5 Qc4+ 28. Kf2 (28. Ne2 $2 Nxe2 $19) 28... Ke7 29. Bg5+ Kf8 30. Bh6+ (30. Qh8+ Kf7 $11) 30... Ke7 31. Bg5+ Kf8 32. Qh8+ Kf7 33. Qf6+ (33. Be3 $2 Nc6 $19) 33... Kg8 34. Qd8+ Kf7 35. Qf6+ (35. Qd7+ Kg6 $11) 35... Kg8 36. Qd8+ Kf7 37. Qf6+ (37. Qd7+ Kg6 $11)) 27. Rxd5+ $1 $18 {[%emt 0:00:21][%mdl 512]} exd5 {[%emt 0:00:02]} 28. Rxd5+ {[%emt 0:00:04]} Ke8 {[%emt 0:00:09]} 29. Qh8+ {[%emt 0:03:01]} (29. Bxc5 Qxh6 30. Bf2 Qc1+ 31. Ke2 Ng1+ 32. Bxg1 Rxg1 33. Rd1 Qxb2+ 34. Kf3 Qxc3+) 29... Kf7 {[%emt 0:00:03]} 30. Bxc5 {[%emt 0:00:57]} Rg1+ {[%emt 0:02:05] [#]} 31. Kf2 $1 {[%emt 0:00:37]} (31. Bxg1 Qxg1+ 32. Ke2 Nd4+ 33. Rxd4 Qg2+ 34. Ke1 (34. Ke3 Qg3+ 35. Ke2 Qg2+ 36. Ke1 Qg1+ 37. Ke2 Qg2+ $11) 34... Qg1+ 35. Ke2 Qg2+ 36. Ke3 Qg3+ 37. Ke2 Qg2+ $11) 31... Qxb2+ {[%emt 0:00:05]} 32. Ne2 $1 {[%emt 0:00:02] White threatens Qf6+ and mate.} Rg2+ {[%emt 0:00:57]} 33. Kxg2 {[%emt 0:00:07] Qf6+ would kill now.} Qxe2+ {[%emt 0:00:01]} 34. Kg3 {[%emt 0:00:10] White wants to mate with Qf6+.} Qe1+ {[%emt 0:00:35] [#]} 35. Bf2 $1 {[%emt 0:00:11] Beautiful play by Smirin!   Weighted Error Value: White=0.43/Black=0.78} ({And not} 35. Kxf3 Qe4+ 36. Kg3 Qg4+ 37. Kh2 Qe2+ 38. Kg1 Qg4+ 39. Kh2 (39. Kf2 Qf4+ 40. Ke2 Qc4+ 41. Ke3 Qe4+ 42. Kf2 Qf4+ 43. Kg1 Qg4+ 44. Kh2 Qe2+ 45. Kg1 Qg4+ $11) 39... Qe2+ 40. Kg3 Qg4+ 41. Kh2 $11) 1-0

[Event "Israeli Team-ch 2023"]
[Site "Petah Tikva"]
[Date "2023.05.05"]
[Round "9.9"]
[White "Levin, Guy"]
[Black "Caspi, Israel"]
[Result "*"]
[ECO "B12"]
[WhiteElo "2391"]
[BlackElo "2472"]
[Annotator "TA"]
[PlyCount "14"]
[EventDate "2023.01.13"]
[EventCountry "ISR"]
[SourceTitle "playchess.com"]
[Source "ChessBase"]
[SourceQuality "1"]
[TimeControl "40/5400+30:1800+30"]

{[%evp 9,14,14,24,19,53,24,61]} 1. e4 {[%emt 0:05:30]} c6 {[%emt 0:02:06]} 2. d4 {[%emt 0:00:15]} d5 {[%emt 0:00:03]} 3. e5 {[%emt 0:00:03]} Bf5 {[%emt 0:00:02]} 4. Nf3 {[%emt 0:00:06]} e6 {[%emt 0:00:06]} 5. Be2 {[%emt 0:00:27]} Ne7 {[%emt 0:00:39][%cal Oc6c5]} 6. c3 {[%emt 1:27:09] B12: Caro-Kann: Advance Variation.} Ng6 {[%emt 0:04:41]} 7. h4 {[%emt 0:00:00] [#]} Be7 $146 {[%emt 0:20:03] Weighted Error Value: White=0.12 (very precise) /Black=0.22 (precise)} ({Predecessor:} 7... h6 8. a4 Nd7 9. Na3 f6 10. h5 Ne7 11. exf6 gxf6 12. Nc2 Bg7 13. Ne3 Bh7 {0-1 Xiong,J (2686)-Tari,A (2653) Titled Tuesday intern op 08th Mar Late blitz 2022 (8)}) *

[Event "Israeli Team-ch 2023"]
[Site "Petah Tikva"]
[Date "2023.05.05"]
[Round "9.10"]
[White "Smirin, Ilia"]
[Black "Kochavi, Ori"]
[Result "*"]
[ECO "A13"]
[WhiteElo "2596"]
[BlackElo "2396"]
[Annotator "TA"]
[PlyCount "37"]
[EventDate "2023.01.13"]
[EventCountry "ISR"]
[SourceTitle "playchess.com"]
[Source "ChessBase"]
[SourceQuality "1"]
[TimeControl "40/5400+30:1800+30"]

{[%evp 13,24,15,9,8,8,8,8,16,25,-1,-1,-8,0]} 1. c4 {[%emt 0:00:03]} e6 {[%emt 0:00:09]} 2. g3 {[%emt 0:00:06]} d5 {[%emt 0:00:39]} 3. Bg2 {[%emt 1:31:51]} Nf6 {[%emt 0:03:03]} 4. Nf3 {[%emt 0:00:00]} dxc4 {[%emt 0:00:05]} 5. Qa4+ {[%emt 0:00:00]} c6 {[%emt 0:01:25]} 6. Qxc4 {[%emt 0:00:00]} b5 {[%emt 0:02:28]} 7. Qc2 {[%emt 0:00:00]} Bb7 {[%emt 1:26:11]} 8. a4 {[%emt 0:00:00] A13: English Opening: 1...e6.} a6 {[%emt 0:00:00]} 9. Nc3 {[%emt 0:03:00]} Nbd7 {[%emt 0:00:00]} 10. O-O {[%emt 0:00:00]} Be7 {[%emt 0:00:00]} 11. b3 {[%emt 0:00:00]} O-O {[%emt 0:00:00]} 12. Bb2 {[%emt 0:00:00]} Qb6 {[%emt 0:00:00] [#] An uneventful encounter.   Weighted Error Value: White=0.06 (flawless) /Black=0.00 (flawless)} {Predecessor:} 13. e4 $146 c5 14. d3 Rfd8 15. Rfd1 Ng4 16. h3 Ngf6 17. Bc1 Bc6 18. Be3 Qb7 19. Ne1 {1-0 Deac,B (2625)-Samadov,R (2332) Titled Tuesday intern op 17th Nov blitz 2020 (6)} *

[Event "Israeli Team-ch 2023"]
[Site "Petah Tikva"]
[Date "2023.05.05"]
[Round "9.10"]
[White "Levin, Guy"]
[Black "Caspi, Israel"]
[Result "1/2-1/2"]
[ECO "A13"]
[WhiteElo "2391"]
[BlackElo "2472"]
[Annotator "TA"]
[PlyCount "53"]
[EventDate "2023.01.13"]
[EventCountry "ISR"]
[SourceTitle "playchess.com"]
[Source "ChessBase"]
[SourceQuality "1"]
[TimeControl "40/5400+30:1800+30"]

{[%evp 13,53,15,26,14,23,20,22,8,24,0,0,0,-3,-18,-6,-12,-13,-31,-21,-31,-18,-10,6,7,7,6,5,6,5,7,7,0,0,0,0,0,0,0,0,-4,0,-10]} 1. c4 {[%emt 0:00:03]} e6 {[%emt 0:00:09]} 2. g3 {[%emt 0:00:06]} d5 {[%emt 0:00:39]} 3. Bg2 {[%emt 1:31:51]} Nf6 {[%emt 0:03:03]} 4. Nf3 {[%emt 0:00:00]} dxc4 {[%emt 0:00:05]} 5. Qa4+ {[%emt 0:00:00]} c6 {[%emt 0:01:25]} 6. Qxc4 {[%emt 0:00:00]} b5 {[%emt 0:02:28]} 7. Qc2 {[%emt 0:00:00]} Bb7 {[%emt 1:26:11]} 8. a4 {[%emt 0:00:00] A13: English Opening: 1...e6.} a6 {[%emt 0:00:00]} 9. Nc3 {[%emt 0:03:00]} Nbd7 {[%emt 0:00:00]} 10. O-O {[%emt 0:00:00]} Be7 {[%emt 0:00:00]} 11. b3 {[%emt 0:00:00]} O-O {[%emt 0:00:00]} 12. Bb2 {[%emt 0:00:00]} Qb6 {[%emt 0:00:00]} 13. Rfc1 {[%emt 0:00:00]} Rac8 {[%emt 0:00:00]} 14. d3 {[%emt 0:00:00]} c5 {[%emt 0:00:00] [#]} 15. Nd2 $146 {[%emt 0:00:00]} ({Predecessor:} 15. axb5 axb5 16. e4 Rfd8 17. Qe2 Nb8 18. e5 Nd5 19. Ne4 Nc6 20. h4 h6 21. Nh2 {0-1 Barcenilla,R (2463)-Bilguun,S (2454) Asia Nations online Cup rapid 2020 (5.3)}) 15... Bxg2 {[%emt 0:00:00]} 16. Kxg2 {[%emt 0:00:00]} Qb7+ {[%emt 0:00:00]} 17. Kg1 {[%emt 0:00:00] The position is equal.} h5 {[%emt 0:00:00]} 18. axb5 {[%emt 0:00:00]} axb5 {[%emt 0:00:00][%cal Ba6b5,Bb5b4][%mdl 32]} 19. Ra5 {[%emt 0:00:00]} b4 $1 {[%emt 0:00:00]} 20. Nce4 {[%emt 0:00:00]} Nxe4 {[%emt 0:06:30]} 21. dxe4 {[%emt 0:00:00]} Ra8 {[%emt 0:00:00]} 22. Nc4 {[%emt 0:00:00]} Rxa5 {[%emt 0:00:00]} 23. Nxa5 {[%emt 0:00:00]} Qb5 {[%emt 0:00:00]} 24. Nc4 {[%emt 0:00:00]} Nb6 {[%emt 0:00:00]} 25. Nxb6 {[%emt 0:00:00]} Qxb6 {[%emt 0:00:00]} 26. Rd1 {[%emt 0:00:00]} Rd8 {[%emt 0:00:00]} 27. Rd3 {[%emt 0:00:00] A rather calm draw.   Weighted Error Value: White=0.05 (flawless) /Black=0.03 (flawless)} 1/2-1/2